Cogmind - Beta 13 @@@ ROGUE MODE // 2024.05.08 @ 14:30:12 Player: Julianium Result: Destroyed by G-47 Trooper with Particle Gun Performance ------------- Evolutions (0) 0 Regions Visited (1) 200 Robots Destroyed (6) 30 Value Destroyed (153) 153 Prototype IDs (0) 0 Alien Tech Used (0) 0 Bonus (0) 0 TOTAL SCORE: 383 Bonus ------- None Cogmind --------- Core Integrity 0/250 Matter 293/300 Energy 98/100 System Corruption 1% Temperature Cool (9) Movement Core (50) Location -10/Materials Parts ------- > --- POWER (1) -------- (None) > --- PROPULSION (2) --- (None) > --- UTILITY (2) ------ (None) > --- WEAPON (2) ------- (None) > --- INVENTORY (5) ---- Light Ion Engine Aluminum Leg Aluminum Leg High-capacity Matter Pod (109) Medium Laser Peak State ------------ > --- POWER ------------ Light Ion Engine > --- PROPULSION ------- Aluminum Leg Aluminum Leg > --- UTILITY ---------- Heat Sink High-capacity Matter Pod > --- WEAPON ----------- Medium Laser Assault Rifle > --- INVENTORY -------- Aluminum Leg Wheel Wheel Small Laser [Rating: 7] Favorites ----------- Power Light Ion Engine Engine Light Ion Engine Propulsion Aluminum Leg Leg Aluminum Leg Utility High-capacity Matter Pod Device Structural Scanner Storage High-capacity Matter Pod Protection Light Armor Plating Weapon Assault Rifle Energy Gun EM Pulse Gun Ballistic Gun Assault Rifle Build | -11 -10 ------- Run | Yrd Mat Slots Evolved . | . . Power . | . . Propulsion . | . . Utility . | . . Weapon . | . . Parts Attached 10 | 6 4 Power 1 | 1 . Engine 1 | 1 . Core . | . . Reactor . | . . Propulsion 2 | 2 . Treads . | . . Leg 2 | 2 . Wheel . | . . Hover . | . . Flight . | . . Utility 4 | 1 3 Device 2 | 1 1 Storage 1 | . 1 Processor . | . . Hackware . | . . Protection 1 | . 1 Artifact . | . . Weapon 3 | 2 1 Energy Gun 2 | 1 1 Energy Cannon . | . . Ballistic Gun 1 | 1 . Ballistic Cannon . | . . Launcher . | . . Special Weapon . | . . Impact Weapon . | . . Slashing Weapon . | . . Piercing Weapon . | . . Special Melee Weapon . | . . Unidentified Prototypes . | . . Parts Lost 7 | . 7 Power 1 | . 1 Propulsion 2 | . 2 Utility 2 | . 2 Weapon 2 | . 2 Highest Loss Streak 6 | . 6 To Critical Strikes . | . . Average Slot Usage (%) 85 | . 85 Engine 12 | . 12 Leg 25 | . 25 Device 12 | . 12 Storage 10 | . 10 Energy Gun 11 | . 11 Ballistic Gun 11 | . 11 Naked Turns 4 | . 4 Heaviest Build 12 | 8 12 Greatest Support 20 | 20 20 Greatest Overweight (x) . | . . Average Overweight (x) . | . . Largest Inventory Capacity 5 | 5 5 Average Capacity 5 | 5 5 Most Carried 5 | 5 5 Average Carried 4 | 2 4 Final Capacity 5 | 5 5 Final Carried 5 | 4 5 Class Distribution -------------------- 100% | Mutant Dominant Class ---------------- Mutant | -10/Materials Resources | -11 -10 ----------- Run | Yrd Mat Matter Collected 354 | 263 91 Remotely . | . . Salvage Created 219 | 50 169 Parts 10 | 2 8 Haulers Intercepted . | . . Recyclers Shooed 1 | . 1 Parts Field Recycled . | . . Retrieved Matter . | . . Parts Self-Destructed . | . . Prevented . | . . Kills | -11 -10 ------- Run | Yrd Mat Combat Hostiles Destroyed 3 | 1 2 Melee 1 | . 1 Guns 2 | 1 1 Classes Destroyed 4 | 1 3 Recycler 1 | . 1 Operator 1 | . 1 Watcher 1 | . 1 Grunt 3 | 1 2 Best Kill Streak 2 | 1 2 Combat Bots Only 1 | 1 1 Max Kills in Single Turn 1 | 1 1 Gunslinging . | . . Exploded . | . . Melee 1 | . 1 Uniques/NPCs Destroyed . | . . Combat | -11 -10 -------- Run | Yrd Mat Hostile Shots Fired 76 | 1 75 Missed 18 | . 18 Damage Taken 760 | 10 750 Core 256 | 10 246 Absorbed by Shields . | . . Core Remaining (%) 96 | 96 . Volleys Fired 25 | 1 24 Largest 2 | 2 2 Hottest 70 | 70 60 Shots Fired 41 | 2 39 Gun 41 | 2 39 Cannon . | . . Launcher . | . . Special . | . . Kinetic 25 | 1 24 Thermal 1 | 1 . Explosive . | . . Electromagnetic 15 | . 15 Robot Hit Streak 9 | 1 9 Robot Miss Streak 4 | . 4 Penetration Max . | . . Secondary Targets . | . . Shots Hit Robots 26 | 1 25 Core Hits 18 | 1 17 Critical Kills . | . . Critical Parts Destroyed . | . . Critical Strikes . | . . Melee Attacks . | . . Impact . | . . Slashing . | . . Piercing . | . . Sneak Attacks . | . . Combat Hostiles . | . . Follow-up Attacks . | . . Damage Inflicted 407 | 15 392 Guns 377 | 15 362 Cannons . | . . Explosions . | . . Melee . | . . Ramming 30 | . 30 Kinetic 271 | 15 256 Thermal . | . . Explosive . | . . Electromagnetic 106 | . 106 Impact . | . . Slashing . | . . Piercing . | . . Highest Corruption 1 | . 1 Average Corruption 1 | . 1 Corruption Purged . | . . Corruption Blocked . | . . Effects 6 | . 6 Message Errors 2 | . 2 Matter Fused 1 | . 1 Energy Discharges 2 | . 2 Data Loss (minor) 1 | . 1 Overload Shots . | . . Overflow Damage . | . . Projectiles . | . . Explosions . | . . Melee . | . . Knockbacks . | . . Impact . | . . Kinetic . | . . Secondary . | . . Self-Inflicted Damage . | . . Shots . | . . Rammed 1 | . 1 Targets Rammed 28 | . 28 Kicked 27 | . 27 Crushed . | . . Highest Temperature 72 | 15 72 Average Temperature 29 | 12 30 Received Heat Transfer 429 | 6 423 Siege Activations . | . . Robots Corrupted . | . . Combat Hostiles . | . . Parts Fried . | . . Impact Corruptions . | . . Robots Melted . | . . Combat Hostiles . | . . Parts Melted . | . . Heat Transferred . | . . Parts Sabotaged . | . . Parts Stolen . | . . Parts Stripped . | . . Power Chain Reactions . | . . Alert | -11 -10 ------- Run | Yrd Mat Peak Influence 161 | 20 161 Initial 13 | . 13 Average 57 | 2 67 Maximum Alert Level . | . . Low Security (%) 100 | 100 100 Level 1 . | . . Level 2 . | . . Level 3 . | . . Level 4 . | . . Level 5 . | . . High Security . | . . Max Security . | . . Squads Dispatched 2 | . 2 Investigation 1 | . 1 Extermination . | . . Reinforcement 1 | . 1 Assault . | . . Garrison . | . . Intercept . | . . Searches Triggered . | . . Construction Impeded . | . . Haulers Reinforced . | . . Active Scanning Responses . | . . Cargo Convoy Interrupts . | . . Stealth | -11 -10 --------- Run | Yrd Mat Distress Signals 2 | . 2 Communications Jammed . | . . Distress Signals . | . . Times Spotted 16 | 1 15 Peak Tracking Total 5 | 1 5 Tactical Retreats 4 | . 4 Traps | -11 -10 ------- Run | Yrd Mat Traps Triggered 2 | . 2 Indirectly . | . . Trap Hack Attempts . | . . Triggered . | . . Disarmed . | . . Reprogrammed . | . . Reused . | . . Traps Extracted . | . . Installed . | . . Triggered . | . . Machines | -11 -10 ---------- Run | Yrd Mat Machines Disabled . | . . Max in Single Turn . | . . Machines Repaired . | . . Machines Dismantled . | . . Machines Sabotaged . | . . Overloaded Fab Kills . | . . Hacking | -11 -10 --------- Run | Yrd Mat Machines Accessed 4 | . 4 Terminals 3 | . 3 Fabricators . | . . Repair Stations . | . . Recycling Units 1 | . 1 Scanalyzers . | . . Garrison Access . | . . Total Hacks 9 | . 9 Successful 8 | . 8 Failed 1 | . 1 Catastrophic 1 | . 1 Database Lockouts . | . . Manual 1 | . 1 Terminals 7 | . 7 Fabricators . | . . Repair Stations . | . . Recycling Units 2 | . 2 Scanalyzers . | . . Garrison Access . | . . Terminal Hacks 6 | . 6 Record 3 | . 3 Emergency Access Points 1 | . 1 Alert Level 1 | . 1 Unreport Threat 1 | . 1 Fabricator Hacks . | . . Repair Station Hacks . | . . Recycling Unit Hacks 2 | . 2 Retrieve Matter 1 | . 1 Retrieve Components 1 | . 1 Scanalyzer . | . . Garrison Access Hacks . | . . Unauthorized Hacks . | . . Terminals . | . . Fabricators . | . . Repair Stations . | . . Recycling Units . | . . Scanalyzers . | . . Garrison Access . | . . Data Cores Recovered 1 | . 1 Used . | . . Hacking Detections 3 | . 3 Full Trace Events 1 | . 1 Feedback Events . | . . Feedback Blocked . | . . Robot Schematics Acquired . | . . Robots Built . | . . Authchips . | . . Time . | . . Total Robot Build Rating . | . . Part Schematics Acquired . | . . Parts Built . | . . Authchips . | . . Time . | . . Total Part Build Rating . | . . Parts Repaired . | . . Time . | . . Parts Recycled . | . . Recycled Matter . | . . Retrieved Matter . | . . Retrieved Components 1 | . 1 Parts Scanalyzed . | . . Part Schematics Acquired . | . . Parts Damaged . | . . Bothacking | -11 -10 ------------ Run | Yrd Mat Used RIF Installer . | . . Robots Hacked . | . . Non-combat . | . . Combat . | . . Robot Hacks Applied . | . . Relay Couplers Released . | . . Fabnet Peak Effective % . | . . Robots Rewired . | . . Allies Hacked . | . . Hacks Repelled . | . . Allies | -11 -10 -------- Run | Yrd Mat Total Allies . | . . Largest Group . | . . Highest-Rated Group . | . . Highest-Rated Ally . | . . Total Orders . | . . Ally Attacks . | . . Total Damage . | . . Kills . | . . Allies Corrupted . | . . Allies Melted . | . . Intel | -11 -10 ------- Run | Yrd Mat Robot Analysis Total . | . . Derelict Logs Recovered . | . . Drone Launches . | . . Drone Recoveries . | . . Exploration | -11 -10 ------------- Run | Yrd Mat Turns Passed 638 | 95 543 Spaces Moved 443 | 77 366 Core 25 | 19 6 Treads . | . . Legs 418 | 58 360 Wheels . | . . Hover . | . . Flight . | . . Fastest Speed 50 | 50 50 Average Speed 116 | 102 118 Slowest Speed 120 | 120 120 Overloaded Moves . | . . Propulsion Burnouts . | . . Robots Hopped . | . . Cave-ins Triggered . | . . Exploration Rate (%) 34 | 7 61 Regions Visited 1 Branch Regions . Pre-discovered Areas . | . . Known Exits Taken . | . . Unknown Exits Taken 1 | 1 . Scrap Searched . | . . Spaces Dug . | . . Terrain Destroyed . | . . Melee . | . . Projectile . | . . AOE . | . . Terrain Rammed . | . . Walls Destroyed . | . . Machines Disabled . | . . Actions | -11 -10 --------- Run | Yrd Mat Total 519 | 88 431 Wait . | . . Move 442 | 76 366 Hop . | . . Pick Up 8 | 5 3 Fast Attach 8 | 5 3 Attach 1 | 1 . Detach 2 | . 2 Swap 1 | . 1 Drop 4 | . 4 Fire 25 | 1 24 Melee . | . . Ram 1 | . 1 Kick 27 | . 27 Crush . | . . Escape Stasis . | . . Rewire . | . . Trap . | . . Miscellaneous . | . . Route ------- -11/Scrapyard -10/Materials (discovered 2 exits: [*Mat] / [*Min]) History --------- Turn | Location | Event 2 | -11/Scrapyard | Met Revision 17 74 | -11/Scrapyard | Discovered new exit (range 8) 96 | -11/Scrapyard | Entered Materials 260 | -10/Materials | Discovered new exit (range 13) 306 | -10/Materials | Build established: Mutant 399 | -10/Materials | Discovered new exit (range 16) 550 | -10/Materials | Core integrity fell below 50% 595 | -10/Materials | Core integrity fell below 20% 609 | -10/Materials | Lost 6 parts (1p1n2u2w) 639 | -10/Materials | Destroyed by G-47 Trooper with Particle Gun Last Messages --------------- Kicked G-34 Mercenary. K-01 Serf collects debris. Kicked G-34 Mercenary. Kicked G-34 Mercenary out of the way. Kicked G-34 Mercenary. R-06 Scavenger collects Ion Engine. Lgt. Armor Plating destroyed. Kicked G-34 Mercenary out of the way. R-06 Scavenger collects Tractor Beam. Kicked W-16 Scout. Kicked G-34 Mercenary. G-34 Mercenary destroyed. K-01 Serf collects debris. Aluminum Leg destroyed. Slammed into G-47 Trooper. System corrupted: Matter fused (-7). Triggered Alarm Trap. An alarm sounds. ALERT: Alarm triggered, dispatching investigation squad. Map ----- +----------------------------------------------------+ | | | | | | | | | | | | | | | | | | | ??????????????????????????????##############???? | | ??????????????????????????????# ##???? | | ?????????????????????????????## """ ##???? | | ?????????????????????????????## """"" ##???? | | ?????????????????????????????## """"" ##???? | | ?????????????????????????????## """"" !##???? | | ?????????????????????????????## """ ##???? | | ???????????????????#####?????## ##???? | | ?????????###########################+#########?? | | ?????????############T############# ########?? | | ?????????## + ##?? | | ?????????## < ########## # ##?? | | ?????????## ########## # ##?? | | ?????????###### #### # # #""" # ?? | | ?????????###### #### # ! # #""" # ?? | | ??????######### #### # !! !# #""" # ?? | | ??????######### ####g@ # ! %%/ # # ?? | | ??????## #### # !=# #""" # ?? | | ??????## #### ########## #""" # ?? | | ???##### #### #""" # ?? | | ???######+##############" ######### # # ? | | ???## ##########"T######### + #### | | ???## ##??????##### ????? # ####+#### | | ???## ##??????##### ????? # # ## | | ???## ##????????????????? # # = / | | ???## ##????????????????? # # ## | | ???## """"" ##???????#### ??? + + ## | | ???## """"" ##???????############ # ##? | | ???## """"" ##???????## ##### # ##? | | ???##+##########???????## #########? | | ???## ##########???????## #########? | | ???## ##???????????????## ##???????? | | ???## ##???????????????## ##### #####????? | | ???## ##???????????????#### ####### #####????? | | ???## ##???????????????#### ##??## """##????? | | ???## ##?????????????? #### ????## "##????? | | ???## ##?????????????? ####?????## !"# ????? | | ???## ##?????????????? # ???? ## < ""# ????? | | ???## ##?????????????? # ""?? ## !"# ????? | | ???## ##?????????????? # """"" ## "# ????? | | ???## ##??????????????## """"" ## """# ????? | +----------------------------------------------------+ Best States ------------- Heat Dissipation 35 Energy Generation 10 Energy Capacity 125 Matter Stores 331 Matter Capacity 500 Sight Range 16 Terrain Scan Density 10 Armor Coverage 150 Evasion (%) 55 Item Schematics ----------------- None Robot Schematics ------------------ None Fabricated ------------ Nothing Alien Tech Used ----------------- None Achievements -------------- Everything Is Under Control Challenges ------------ None Game ------ Seed SubdwellerTachyonRegenerator Manual? 0 Play Time 00:13:45 Cumulative 2.2 hours Start 2024.05.08 @ 14:15:39 End 2024.05.08 @ 14:30:12 Sessions 1 Manual Loads 0 Difficulty Rogue Special Mode None Game No. 2 Rogue 2 Adventurer 0 Explorer 0 Win Type - Total 0 Types 0/0/0/0/0/0/0/0/0 Lore% 3 Gallery% 4 Achievement% 4 Wizard Run 0 Options --------- Layout 1 ASCII 0 Keyboard 0 Movement Numpad Keybinds 0 Fullscreen 1 Font 24/Crisp Map View 50x35 Zoom Use 0% Tactical HUD 0 Map Filters NONE Filters NONE Steam 0 RUN: 7648fdb3-e009-403d-b5cb-4930104f3ba6